bitfinex-derivatives/quotes_BTCF0:USTF0_20241109
["timestamp","ask_amount","ask_price","bid_price","bid_amount"]
[1731143568368,0.09710915,76672.0,76671.0,0.13756844]
[1731143571169,0.12963,76673.0,76672.0,0.065176]
[1731143576274,0.12963,76673.0,76672.0,0.07399347]
[1731143579179,0.22673989,76673.0,76672.0,0.04998108]
[1731143580472,0.29191589,76673.0,76672.0,0.04998108]
[1731143580673,0.29191589,76673.0,76672.0,0.00881747]
[1731143580976,0.065177,76671.0,76670.0,0.15165888]
[1731143581178,0.59547833,76671.0,76670.0,0.15165888]
[1731143581378,0.64222996,76671.0,76670.0,0.15165888]
[1731143582679,0.64222996,76671.0,76663.0,0.065184]
[1731143582680,0.065183,76664.0,76663.0,0.065184]
[1731143582874,0.52309289,76664.0,76663.0,0.065184]
[1731143583274,0.3608,76664.0,76656.0,0.00805674]
[1731143583582,0.065189,76659.0,76658.0,0.065188]
[1731143583881,0.09037283,76659.0,76658.0,0.065188]
[1731143584074,0.16231703,76659.0,76658.0,0.065188]
[1731143585872,0.16231922,76659.0,76658.0,0.065188]
[1731143586374,0.05878137,76663.0,76658.0,0.2725668]
[1731143586569,0.065189,76659.0,76658.0,0.065188]
[1731143586774,0.065189,76659.0,76658.0,0.30258846]
[1731143588377,0.065189,76659.0,76658.0,0.27257944]
[1731143589178,0.065189,76659.0,76658.0,0.34497088]
[1731143589484,0.05878137,76663.0,76658.0,0.43580814]
[1731143589691,0.05878137,76663.0,76659.0,0.27257844]
[1731143589990,0.065186,76661.0,76660.0,0.2157984]
[1731143590191,0.065186,76661.0,76660.0,0.34588473]
[1731143590493,0.05878137,76663.0,76660.0,0.34588473]
[1731143590683,0.12396537,76663.0,76662.0,0.07239144]
[1731143590989,0.12396537,76663.0,76662.0,0.41827385]
[1731143591189,0.12396537,76663.0,76662.0,0.50926386]
[1731143591392,0.12396537,76663.0,76662.0,0.37917753]
[1731143591587,0.12396537,76663.0,76662.0,0.28818752]
[1731143592084,0.12396537,76663.0,76662.0,0.27978288]
[1731143592279,0.12396537,76663.0,76662.0,0.28818783]
[1731143594288,0.48476537,76663.0,76662.0,0.17554698]
[1731143595500,0.48476537,76663.0,76662.0,0.24052843]
[1731143595688,0.48476537,76663.0,76662.0,0.14591389]
[1731143596087,0.48476537,76663.0,76662.0,0.08093244]
[1731143596295,0.48476537,76663.0,76662.0,0.14591389]
[1731143596996,0.48476537,76663.0,76662.0,0.08093244]
[1731143597192,0.48476537,76663.0,76662.0,0.06498145]
[1731143597796,0.065185,76662.0,76661.0,0.06498145]
[1731143598093,0.065185,76662.0,76661.0,0.15850972]
[1731143598495,0.065185,76662.0,76661.0,0.09352827]
[1731143599090,0.13757644,76662.0,76661.0,0.09352827]
[1731143599294,0.11359144,76662.0,76658.0,0.06498796]
[1731143599597,0.13757944,76659.0,76658.0,0.06498796]
[1731143601295,0.065189,76657.0,76656.0,0.00195674]
[1731143601789,0.16232597,76657.0,76656.0,0.00195674]
[1731143601993,0.52312597,76657.0,76656.0,0.00195674]
[1731143604998,0.52312597,76657.0,76656.0,0.01053218]
[1731143605303,0.52312597,76657.0,76656.0,0.01053217]
[1731143608198,0.52312597,76657.0,76656.0,0.01052947]
[1731143608402,0.52312597,76657.0,76656.0,0.00195674]
[1731143608607,0.52312597,76657.0,76656.0,0.01053246]
[1731143609194,0.425989,76657.0,76656.0,0.08850971]
[1731143609508,0.425989,76657.0,76656.0,0.10429962]
[1731143610097,0.425989,76657.0,76656.0,0.10434589]
[1731143613811,0.49209752,76657.0,76656.0,0.10434589]
[1731143614901,0.13129752,76657.0,76656.0,0.10437555]
[1731143615102,0.49209752,76657.0,76656.0,0.10437555]
[1731143615503,0.49209752,76657.0,76656.0,0.10430317]
[1731143615701,0.49209752,76657.0,76656.0,0.09579983]
[1731143615910,0.49209752,76657.0,76656.0,0.10430317]
[1731143616304,0.58923449,76657.0,76656.0,0.01046008]
[1731143617008,0.52312597,76657.0,76656.0,0.01046008]
[1731143620104,0.52312528,76657.0,76656.0,0.00195674]
[1731143624416,0.425989,76657.0,76656.0,0.09541078]
[1731143624715,0.425989,76657.0,76656.0,0.20681564]
[1731143625607,0.425989,76657.0,76656.0,0.09541078]
[1731143626426,0.425989,76657.0,76656.0,0.20681849]
[1731143628117,0.425989,76657.0,76656.0,0.21504336]
[1731143629009,0.425989,76657.0,76656.0,0.21504482]
[1731143629617,0.425989,76657.0,76656.0,0.20681849]
[1731143629918,0.425989,76657.0,76656.0,0.21500336]
[1731143630919,0.425989,76657.0,76656.0,0.20681849]
[1731143631311,0.52312598,76657.0,76656.0,0.00195674]
[1731143633015,0.52312598,76657.0,76656.0,0.06714674]
[1731143633809,0.16232598,76657.0,76656.0,0.06714674]
[1731143634014,0.52312598,76657.0,76656.0,0.06714674]
[1731143635918,0.56989043,76657.0,76656.0,0.13342433]
[1731143636111,0.66629705,76657.0,76656.0,0.13342433]
[1731143636420,0.52312598,76657.0,76656.0,0.13342433]
[1731143637217,0.66629705,76657.0,76656.0,0.13342433]
[1731143637520,0.52312598,76657.0,76656.0,0.13342433]
[1731143638223,0.16232598,76657.0,76656.0,0.13342433]
[1731143639319,0.065189,76657.0,76656.0,0.33807067]
[1731143639615,0.065189,76657.0,76656.0,0.27179308]
[1731143639809,0.065189,76657.0,76656.0,0.20660308]
[1731143640006,0.065189,76657.0,76656.0,0.27179308]
[1731143640813,0.065189,76657.0,76656.0,0.20660308]
[1731143642322,0.065189,76657.0,76656.0,0.20650956]
[1731143642513,0.425989,76657.0,76656.0,0.20650956]
[1731143644421,0.425989,76657.0,76656.0,0.09331952]
[1731143644619,0.425989,76657.0,76656.0,0.17159657]
[1731143644810,0.425989,76657.0,76656.0,0.16571096]
[1731143645016,0.425989,76657.0,76656.0,0.27681463]
[1731143645218,0.3608,76657.0,76656.0,0.27671133]
[1731143645618,0.31513063,76657.0,76656.0,0.27671133]
[1731143646928,0.31513063,76657.0,76656.0,0.27536284]
[1731143647431,0.065185,76662.0,76658.0,0.065188]
[1731143647616,0.065185,76662.0,76661.0,0.07239144]
[1731143647927,0.065185,76662.0,76661.0,0.27536284]
[1731143650923,0.065185,76662.0,76661.0,0.1649895]
[1731143651419,0.065185,76662.0,76661.0,0.09259806]
[1731143654425,0.06519,76656.0,76655.0,0.065191]
[1731143654724,0.0903752,76656.0,76655.0,0.065191]
[1731143655115,0.16232332,76656.0,76655.0,0.065191]
[1731143656624,0.16232333,76656.0,76655.0,0.065191]
[1731143660030,0.3057559,76656.0,76655.0,0.065191]
[1731143660429,0.6665559,76656.0,76655.0,0.065191]
[1731143660631,0.52312333,76656.0,76655.0,0.065191]
[1731143661329,0.42599,76656.0,76655.0,0.26941427]
[1731143661530,0.42599,76656.0,76655.0,0.20422327]
[1731143661939,0.42599,76656.0,76655.0,0.09316918]
[1731143663333,0.42599,76656.0,76655.0,0.2042888]
[1731143664628,0.42599,76656.0,76655.0,0.09316918]
[1731143667829,0.42599,76656.0,76655.0,0.17137395]
[1731143668236,0.42599,76656.0,76655.0,0.17136584]
[1731143668430,0.42599,76656.0,76655.0,0.09316918]
[1731143668630,0.42599,76656.0,76655.0,0.17136174]
[1731143668843,0.42599,76656.0,76655.0,0.09316918]
[1731143669836,0.42599,76656.0,76655.0,0.17136345]
[1731143670042,0.42599,76656.0,76655.0,0.23655445]
[1731143670234,0.42599,76656.0,76655.0,0.15836018]
[1731143670538,0.42599,76656.0,76655.0,0.09316918]
[1731143671155,0.42599,76656.0,76655.0,0.09320196]
[1731143674537,0.42599,76656.0,76655.0,0.20442668]
[1731143674734,0.42599,76656.0,76655.0,0.20443306]
[1731143675136,0.42599,76656.0,76655.0,0.09320196]
[1731143675633,0.42599,76656.0,76655.0,0.20449956]
[1731143676153,0.42599,76656.0,76655.0,0.20449558]
[1731143676441,0.065193,76653.0,76652.0,0.13758444]
[1731143676830,0.1623312,76653.0,76652.0,0.13758444]
[1731143680442,0.065193,76653.0,76652.0,0.13758444]
[1731143680643,0.065193,76653.0,76652.0,0.14537632]
[1731143681650,0.065193,76653.0,76652.0,0.00779188]
[1731143682040,0.10521504,76653.0,76652.0,0.00779188]
[1731143682237,0.065196,76649.0,76648.0,0.13758744]
[1731143682432,0.065196,76649.0,76648.0,0.14532878]
[1731143685435,0.065196,76649.0,76648.0,0.00774134]
[1731143685638,0.065197,76648.0,76647.0,0.0389]
[1731143685838,0.065197,76648.0,76647.0,0.04661618]
[1731143686036,0.065197,76648.0,76647.0,0.0389]
[1731143686254,0.065197,76648.0,76647.0,0.04662757]
[1731143686461,0.065197,76648.0,76647.0,0.0389]
[1731143686750,0.065197,76648.0,76647.0,0.04662678]
[1731143686952,0.065197,76648.0,76647.0,0.0389]
[1731143693745,0.09038551,76648.0,76647.0,0.0389]
[1731143695349,0.09038551,76648.0,76647.0,0.04663876]
[1731143697654,0.09038551,76648.0,76647.0,0.0389]
[1731143698361,0.09038551,76648.0,76647.0,0.04670655]
[1731143699247,0.065197,76648.0,76647.0,0.6461176]
[1731143699453,0.01985187,76650.0,76647.0,0.6461176]
[1731143699649,0.065196,76649.0,76648.0,0.48262028]
[1731143700055,0.065196,76649.0,76648.0,0.59991121]
[1731143700253,0.065196,76649.0,76648.0,0.59991012]
[1731143700462,0.065196,76649.0,76648.0,0.45662004]
[1731143700655,0.065196,76649.0,76648.0,0.3393302]
[1731143703461,0.065196,76649.0,76648.0,0.48546329]
[1731143703664,0.065196,76649.0,76648.0,0.33154782]
[1731143704163,0.13697021,76652.0,76648.0,0.33182908]
[1731143704362,0.065194,76651.0,76650.0,0.10426812]
[1731143704666,0.065194,76651.0,76650.0,0.33182908]
[1731143706775,0.065194,76651.0,76650.0,0.47809078]
[1731143707258,0.09714699,76651.0,76648.0,0.11728984]
[1731143707454,0.09714699,76650.0,76643.0,0.107501]
[1731143707658,0.0652,76645.0,76644.0,0.0077712]
[1731143708156,0.16234699,76645.0,76644.0,0.0077712]
[1731143708363,0.16234699,76645.0,76644.0,0.0729712]
[1731143708758,0.0652,76645.0,76644.0,0.0729712]
[1731143709172,0.16234699,76645.0,76644.0,0.0729712]
[1731143710265,0.16234699,76645.0,76644.0,0.0652]
[1731143710462,0.12232148,76645.0,76644.0,0.0652]
[1731143712163,0.16234726,76645.0,76644.0,0.0652]
[1731143713373,0.09038875,76645.0,76644.0,0.0652]
[1731143714259,0.0652,76645.0,76644.0,0.39699593]
[1731143716875,0.0652,76645.0,76644.0,0.4047057]
[1731143717870,0.3608,76656.0,76644.0,0.33957032]
[1731143718066,0.3608,76656.0,76643.0,0.0423]
[1731143718067,0.065193,76653.0,76652.0,0.07239144]
[1731143718272,0.065193,76653.0,76652.0,0.4771544]
[1731143718469,0.3608,76656.0,76652.0,0.4771544]
[1731143718674,0.065191,76655.0,76653.0,0.44387362]
[1731143718876,0.065191,76655.0,76654.0,0.33956996]
[1731143719382,0.3608,76656.0,76654.0,0.33956996]
[1731143719567,0.3608,76656.0,76655.0,0.33956996]
[1731143719568,0.42599,76656.0,76655.0,0.33956996]
[1731143721071,0.42599,76656.0,76655.0,0.47576428]
[1731143721372,0.42599,76656.0,76655.0,0.54095528]
[1731143721967,0.3608,76656.0,76655.0,0.54095528]
[1731143722169,0.29556012,76656.0,76655.0,0.54884043]
[1731143722380,0.39269439,76656.0,76655.0,0.07307615]
[1731143723174,0.29556012,76656.0,76655.0,0.07307615]
[1731143723370,0.39269447,76656.0,76655.0,0.07307615]
[1731143723584,0.39269447,76656.0,76655.0,0.20979936]
[1731143724588,0.39269447,76656.0,76655.0,0.20990313]
[1731143725481,0.35267417,76656.0,76655.0,0.20191421]
[1731143727092,0.0971343,76656.0,76655.0,0.20191421]
[1731143728083,0.05711209,76656.0,76655.0,0.20191421]
[1731143728391,0.09713102,76662.0,76661.0,0.065186]
[1731143728689,0.09713102,76662.0,76661.0,0.13757744]
[1731143729401,0.12966171,76666.0,76662.0,0.065185]
[1731143729588,0.12966171,76666.0,76662.0,0.15646272]
[1731143729991,0.12966171,76666.0,76662.0,0.15645216]
[1731143730894,0.06447971,76666.0,76662.0,0.15645216]
[1731143731089,0.09228,76670.0,76662.0,0.1636586]
[1731143731292,0.49119,76673.0,76662.0,0.1636586]
[1731143731293,0.49119,76673.0,76671.0,0.065177]
[1731143731889,0.55681135,76673.0,76670.0,0.07239144]
[1731143732091,0.49043,76673.0,76672.0,0.065176]
[1731143732290,0.49043,76673.0,76672.0,0.15606525]
[1731143732492,0.12963,76673.0,76672.0,0.15606525]
[1731143732696,0.12963,76673.0,76672.0,0.15612595]
[1731143733300,0.12963,76673.0,76672.0,0.23431748]
[1731143733500,0.08397345,76673.0,76672.0,0.15612595]
[1731143733801,0.08397345,76673.0,76672.0,0.23431748]
[1731143734189,0.08397345,76673.0,76672.0,0.22851739]
[1731143737404,0.08397345,76673.0,76672.0,0.13756744]
[1731143744610,0.18108888,76673.0,76672.0,0.13756744]
[1731143749609,0.08397345,76673.0,76672.0,0.13756744]
[1731143749813,0.18108876,76673.0,76672.0,0.13756744]
[1731143751203,0.08397345,76673.0,76672.0,0.13756744]
[1731143754615,0.14914945,76673.0,76672.0,0.065176]
[1731143754813,0.065183,76665.0,76664.0,0.065183]
[1731143755010,0.065188,76659.0,76658.0,0.065188]
[1731143755613,0.065188,76659.0,76658.0,0.07239144]
[1731143756314,0.065188,76659.0,76658.0,0.13757944]
[1731143757123,0.065185,76662.0,76660.0,0.065186]
[1731143757319,0.065185,76662.0,76661.0,0.05200449]
[1731143757507,0.3608,76665.0,76660.0,0.065186]
[1731143757703,0.3608,76665.0,76662.0,0.0520094]
[1731143758014,0.065184,76663.0,76662.0,0.0520094]
[1731143758313,0.3608,76665.0,76661.0,0.0520094]
[1731143758707,0.065185,76662.0,76660.0,0.065186]
[1731143759108,0.3608,76665.0,76660.0,0.065186]
[1731143759411,0.065186,76661.0,76660.0,0.065186]
[1731143759807,0.16231461,76661.0,76660.0,0.065186]
[1731143760010,0.065188,76659.0,76658.0,0.065187]
[1731143760211,0.16231661,76659.0,76658.0,0.13757844]
[1731143760610,0.06519,76656.0,76653.0,0.065192]
[1731143760811,0.09712861,76655.0,76653.0,0.065192]
[1731143761010,0.09712861,76655.0,76654.0,0.065192]
[1731143761210,0.12230167,76655.0,76654.0,0.065192]
[1731143762221,0.16232246,76655.0,76654.0,0.065192]
[1731143762417,0.065193,76653.0,76650.0,0.065195]
[1731143762622,0.05711219,76652.0,76651.0,0.07356827]
[1731143763517,0.05711219,76652.0,76651.0,0.065194]
[1731143766124,0.4009,76658.0,76651.0,0.065194]
[1731143766125,0.09713624,76657.0,76651.0,0.065194]
[1731143766315,0.09713624,76656.0,76650.0,0.07239144]
[1731143766517,0.05711516,76655.0,76654.0,0.065192]
[1731143766713,0.05711516,76655.0,76651.0,0.0421]
[1731143767024,0.065186,76661.0,76654.0,0.10397288]
[1731143767220,0.065186,76661.0,76659.0,0.15616317]
[1731143767419,0.065186,76661.0,76660.0,0.2042393]
[1731143767620,0.065186,76661.0,76660.0,0.36039679]
[1731143767814,0.065186,76661.0,76660.0,0.2694263]
[1731143768416,0.065186,76661.0,76660.0,0.2042393]
[1731143771521,0.065186,76661.0,76660.0,0.20179116]
[1731143774123,0.13757744,76661.0,76660.0,0.20179116]
[1731143774920,0.06519,76656.0,76655.0,0.13758144]
[1731143775215,0.16232342,76656.0,76655.0,0.14564612]
[1731143775924,0.16232342,76656.0,76655.0,0.14565173]
[1731143777728,0.16232342,76656.0,76655.0,0.13758144]
[1731143778128,0.16952486,76656.0,76650.0,0.0061]
[1731143778424,0.065198,76647.0,76646.0,0.071298]
[1731143778625,0.09038323,76647.0,76646.0,0.065198]
[1731143778824,0.16233142,76647.0,76646.0,0.065198]
[1731143779236,0.09713342,76647.0,76646.0,0.065198]
[1731143779923,0.0571135,76647.0,76646.0,0.065198]
[1731143780238,0.09713342,76647.0,76646.0,0.065198]
[1731143780721,0.065196,76649.0,76647.0,0.065198]
[1731143780918,0.09713777,76648.0,76647.0,0.065198]
[1731143781930,0.14324743,76654.0,76647.0,0.39460323]
[1731143781931,0.065193,76653.0,76647.0,0.39460323]
[1731143782132,0.065193,76653.0,76650.0,0.09108077]
[1731143782327,0.065193,76653.0,76651.0,0.29300209]
[1731143782643,0.065193,76653.0,76652.0,0.20192132]
[1731143785535,0.065193,76653.0,76652.0,0.21000175]
[1731143786930,0.11119144,76655.0,76652.0,0.21000175]
[1731143787132,0.11119144,76655.0,76651.0,0.09108077]
[1731143787133,0.065192,76654.0,76653.0,0.21000175]
[1731143787932,0.065192,76654.0,76653.0,0.33740177]
[1731143788439,0.065192,76654.0,76653.0,0.21000175]
[1731143789525,0.065192,76654.0,76653.0,0.27519475]
[1731143789927,0.065192,76654.0,76653.0,0.16539392]
[1731143790534,0.065192,76654.0,76653.0,0.16533181]
[1731143791032,0.065192,76654.0,76653.0,0.2434937]
[1731143791427,0.065192,76654.0,76653.0,0.1783007]
[1731143791837,0.065192,76654.0,76653.0,0.10013881]
[1731143793232,0.065192,76654.0,76653.0,0.10008287]
[1731143796337,0.065192,76654.0,76653.0,0.09205838]
[1731143796535,0.065192,76654.0,76653.0,0.10008165]
[1731143797033,0.065192,76654.0,76653.0,0.00802327]
[1731143797034,0.16232977,76654.0,76653.0,0.00802327]
[1731143797430,0.16232977,76654.0,76653.0,0.08041471]
[1731143797431,0.09713777,76654.0,76653.0,0.08041471]
[1731143797634,0.09713777,76654.0,76653.0,0.09394435]
[1731143798441,0.09713777,76654.0,76653.0,0.15780959]
[1731143798939,0.05711606,76654.0,76653.0,0.15780959]
[1731143799628,0.05711606,76654.0,76653.0,0.13625668]
[1731143799834,0.05711606,76654.0,76653.0,0.02227032]
[1731143800642,0.05711606,76654.0,76653.0,0.00856496]
[1731143802338,0.16953203,76654.0,76642.0,0.0452]
[1731143802541,0.07239144,76643.0,76642.0,0.0061]
[1731143802840,0.1295075,76643.0,76642.0,0.00852103]
[1731143803043,0.05711606,76643.0,76642.0,0.00852103]
[1731143803634,0.05711606,76645.0,76642.0,0.00852103]
[1731143803841,0.05711606,76644.0,76643.0,0.00852103]
[1731143804136,0.0319297,76644.0,76643.0,0.00852103]
[1731143804337,0.05711606,76645.0,76643.0,0.00852103]
[1731143804540,0.09715109,76644.0,76640.0,0.21692739]
[1731143804747,0.05712389,76643.0,76642.0,0.07239144]
[1731143804937,0.065199,76646.0,76642.0,0.27679983]
[1731143805138,0.43391144,76647.0,76643.0,0.20440839]
[1731143805338,0.43319144,76647.0,76644.0,0.20440839]
[1731143805643,0.065199,76646.0,76645.0,0.20440839]
[1731143806946,0.43387144,76647.0,76645.0,0.20440839]
[1731143807148,0.49838944,76647.0,76646.0,0.20440839]
[1731143807449,0.425998,76647.0,76646.0,0.09332678]
[1731143807646,0.425998,76647.0,76646.0,0.17149596]
[1731143808147,0.425998,76647.0,76646.0,0.09332678]
[1731143809349,0.425998,76647.0,76646.0,0.09279466]
[1731143812646,0.425998,76647.0,76640.0,0.15172439]
[1731143812647,0.0652,76644.0,76640.0,0.15172439]
[1731143812849,0.065203,76641.0,76640.0,0.15172439]
[1731143817552,0.065203,76641.0,76640.0,0.16003405]
[1731143817950,0.065203,76641.0,76640.0,0.15172439]
[1731143819256,0.09039396,76641.0,76640.0,0.15172439]
[1731143820455,0.065203,76641.0,76640.0,0.15172439]
[1731143821250,0.065203,76641.0,76640.0,0.16002042]
[1731143821458,0.065203,76641.0,76640.0,0.15172439]
[1731143822049,0.065203,76641.0,76640.0,0.16003033]
[1731143822450,0.065203,76641.0,76640.0,0.16003061]
[1731143822749,0.065203,76641.0,76640.0,0.15172439]
[1731143823955,0.09884,76643.0,76640.0,0.15172439]
[1731143824271,0.164041,76643.0,76642.0,0.13759344]
[1731143824564,0.09884,76643.0,76642.0,0.34075161]
[1731143824760,0.09884,76643.0,76642.0,0.46901822]
[1731143825652,0.065201,76643.0,76642.0,0.46901822]
[1731143826865,0.02604977,76643.0,76642.0,0.46901822]
[1731143827052,0.065201,76643.0,76642.0,0.46901822]
[1731143827362,0.46032,76644.0,76643.0,0.065201]
[1731143827561,0.52484,76644.0,76643.0,0.39662578]
[1731143829654,0.52484,76644.0,76643.0,0.39641404]
[1731143830068,0.52484,76644.0,76643.0,0.40471359]
[1731143831250,0.52484,76644.0,76643.0,0.39641404]
[1731143831455,0.52484,76644.0,76643.0,0.40473714]
[1731143831663,0.52484,76644.0,76643.0,0.40473974]
[1731143834670,0.52484,76644.0,76643.0,0.40474415]
[1731143834960,0.47916291,76644.0,76643.0,0.40474415]
[1731143835368,0.57631762,76644.0,76643.0,0.07353111]
[1731143838061,0.57631762,76644.0,76643.0,0.065201]
[1731143839070,0.47108893,76644.0,76643.0,0.00832014]
[1731143839270,0.58351071,76644.0,76629.0,0.04]
[1731143839464,0.43319144,76635.0,76629.0,0.04]
[1731143839659,0.57712355,76635.0,76629.0,0.04]
[1731143839867,0.14348144,76630.0,76629.0,0.04]
[1731143840071,0.09715636,76630.0,76629.0,0.04]
[1731143840471,0.03193527,76630.0,76629.0,0.04]
[1731143840776,0.09715636,76630.0,76629.0,0.04]
[1731143841177,0.1695478,76630.0,76629.0,0.04]
[1731143842471,0.07239144,76630.0,76629.0,0.51493579]
[1731143842669,0.07239144,76630.0,76629.0,0.47352185]
[1731143842976,0.07239144,76630.0,76629.0,0.36926148]
[1731143844372,0.07239144,76630.0,76629.0,0.36623988]
[1731143845767,0.13760344,76630.0,76629.0,0.41743823]
[1731143845972,0.13760344,76630.0,76629.0,0.32625723]
[1731143846872,0.065212,76630.0,76629.0,0.32625723]
[1731143847080,0.13760344,76630.0,76629.0,0.32625723]
[1731143847273,0.13760344,76630.0,76629.0,0.43047135]
[1731143847576,0.13760344,76630.0,76629.0,0.32625723]
[1731143847773,0.13760344,76630.0,76629.0,0.43047135]
[1731143847977,0.13760344,76630.0,76629.0,0.32625723]
[1731143849374,0.13760344,76630.0,76626.0,0.0385]
[1731143853275,0.065213,76629.0,76626.0,0.0385]
[1731143855786,0.07239144,76630.0,76626.0,0.0385]
[1731143855990,0.065214,76628.0,76626.0,0.0385]
[1731143857387,0.01953053,76628.0,76627.0,0.32549136]
[1731143857581,0.065214,76628.0,76627.0,0.42970548]
[1731143858476,0.065214,76628.0,76627.0,0.32549136]
[1731143858684,0.07239144,76629.0,76627.0,0.4673029]
[1731143858885,0.07239144,76629.0,76626.0,0.15579292]
[1731143858886,0.13760444,76629.0,76628.0,0.4673029]
[1731143859683,0.13760444,76629.0,76628.0,0.3243587]
[1731143860184,0.13760444,76629.0,76628.0,0.42855519]
[1731143860389,0.13760444,76629.0,76628.0,0.3243587]
[1731143860575,0.13760444,76629.0,76628.0,0.42856055]
[1731143860974,0.13760444,76629.0,76628.0,0.42856052]
[1731143861180,0.13760444,76629.0,76628.0,0.3243587]
[1731143862280,0.13760444,76629.0,76628.0,0.19882682]
[1731143863491,0.13760444,76629.0,76628.0,0.19829697]
[1731143864485,0.065214,76628.0,76624.0,0.065217]
[1731143866800,0.065214,76628.0,76623.0,0.07849144]
[1731143867093,0.065214,76628.0,76625.0,0.065216]
[1731143867299,0.065216,76626.0,76625.0,0.065216]
[1731143870104,0.09111397,76626.0,76625.0,0.065216]
[1731143872415,0.05276596,76629.0,76625.0,0.5321623]
[1731143872609,0.31511609,76633.0,76626.0,0.59740783]
[1731143872805,0.065214,76628.0,76627.0,0.4669463]
[1731143873020,0.065214,76628.0,76627.0,0.59745991]
[1731143873410,0.065214,76628.0,76627.0,0.46699838]
[1731143874924,0.065214,76628.0,76627.0,0.5844138]
[1731143875518,0.065214,76628.0,76627.0,0.46699838]
[1731143876329,0.065214,76628.0,76627.0,0.53221338]
[1731143877416,0.065214,76628.0,76627.0,0.53006603]
[1731143877612,0.065214,76628.0,76627.0,0.38936233]
[1731143879318,0.065214,76628.0,76627.0,0.065215]
[1731143879519,0.065214,76628.0,76627.0,0.26088185]
[1731143883522,0.13760544,76628.0,76627.0,0.1955544]
[1731143884427,0.13760544,76628.0,76627.0,0.2607694]
[1731143885827,0.13760544,76628.0,76627.0,0.26114207]
[1731143886022,0.13760544,76628.0,76627.0,0.15459935]
[1731143886331,0.13760544,76628.0,76627.0,0.26116439]
[1731143887432,0.19687458,76628.0,76627.0,0.065215]
[1731143887728,0.12448314,76628.0,76627.0,0.065215]
[1731143888027,0.02732745,76628.0,76627.0,0.065215]
[1731143889933,0.38032609,76633.0,76624.0,0.43483144]
[1731143890131,0.38032609,76633.0,76632.0,0.065211]
[1731143890433,0.40798351,76633.0,76632.0,0.065211]
[1731143894533,0.38032609,76633.0,76632.0,0.2605912]
[1731143895639,0.45271753,76633.0,76632.0,0.2605912]
[1731143896932,0.13760144,76633.0,76632.0,0.2605912]
[1731143900328,0.13760144,76633.0,76632.0,0.26055928]
[1731143902439,0.13760144,76633.0,76632.0,0.1543313]
[1731143903145,0.13760144,76633.0,76624.0,0.52611366]
[1731143903146,1.18988144,76633.0,76629.0,0.07822843]
[1731143903346,0.065234,76604.0,76597.0,0.06404038]
[1731143903644,0.07239144,76598.0,76589.0,0.039]
[1731143903833,0.07239144,76591.0,76589.0,0.039]
[1731143906935,0.07239144,76591.0,76589.0,0.07799372]
[1731143907243,0.07239144,76591.0,76589.0,0.039]
[1731143908442,0.13763744,76591.0,76589.0,0.039]
[1731143908852,0.3608,76594.0,76589.0,0.039]
[1731143910231,0.07239144,76593.0,76589.0,0.039]
[1731143911439,0.065245,76592.0,76589.0,0.039]
[1731143913849,0.065246,76591.0,76589.0,0.039]
[1731143914647,0.07239144,76593.0,76589.0,0.039]
[1731143914648,0.065246,76590.0,76589.0,0.039]
[1731143914947,0.065247,76589.0,76588.0,0.00195863]
[1731143918845,0.065247,76589.0,76588.0,0.06720663]
[1731143919051,0.426043,76594.0,76593.0,0.065244]
[1731143920346,0.426043,76594.0,76593.0,0.10410631]
[1731143921544,0.426043,76594.0,76593.0,0.065244]
[1731143922941,0.426043,76594.0,76593.0,0.10410631]
[1731143923747,0.426043,76594.0,76593.0,0.065244]
[1731143924239,0.426043,76594.0,76593.0,0.10410631]
[1731143924646,0.426043,76594.0,76590.0,0.065246]
[1731143924647,0.065245,76592.0,76590.0,0.065246]
[1731143925454,0.3608,76594.0,76590.0,0.065246]
[1731143925647,0.065245,76591.0,76590.0,0.065246]
[1731143928353,0.065245,76591.0,76586.0,0.11190578]
[1731143928354,0.065248,76589.0,76586.0,0.11190578]
[1731143928558,0.065248,76589.0,76588.0,0.065248]
[1731143928861,0.065248,76589.0,76588.0,0.07297403]
[1731143929360,0.065248,76589.0,76588.0,0.07296377]
[1731143930950,0.065248,76589.0,76588.0,0.07294125]
[1731143932755,0.065248,76589.0,76588.0,0.14853926]
[1731143939664,0.10769568,76589.0,76588.0,0.07294125]
[1731143941364,0.10769568,76589.0,76588.0,0.07297741]
[1731143945071,0.10769568,76589.0,76588.0,0.065248]
[1731143945269,0.10769568,76589.0,76588.0,0.07299891]
[1731143947469,0.1076196,76589.0,76588.0,0.07299891]
[1731143947775,0.065248,76589.0,76588.0,0.1498969]
[1731143948569,0.065248,76589.0,76588.0,0.14983866]
[1731143948968,0.050438,76589.0,76588.0,0.14983866]
[1731143952065,0.050438,76589.0,76588.0,0.14214599]
[1731143954778,0.09193354,76589.0,76586.0,0.10580578]
[1731143955078,0.04149554,76588.0,76586.0,0.10580578]
[1731143956667,0.04149554,76588.0,76587.0,0.065249]
[1731143957582,0.08915556,76588.0,76587.0,0.065249]
[1731143957780,0.04764906,76588.0,76587.0,0.14478288]
[1731143957968,0.0061,76595.0,76591.0,0.065245]
[1731143958174,0.065238,76601.0,76593.0,0.07239144]
[1731143958175,0.04797028,76594.0,76593.0,0.07239144]
[1731143958370,0.04797028,76594.0,76593.0,0.14571892]
[1731143959381,0.04797028,76594.0,76593.0,0.13763544]
[1731143959577,0.04797028,76594.0,76593.0,0.1457751]
[1731143960279,0.04797028,76594.0,76593.0,0.13763544]
[1731143961777,0.3608,76598.0,76593.0,0.08054081]
[1731143961987,0.07849144,76599.0,76595.0,0.065241]
[1731143961988,0.04595095,76597.0,76595.0,0.065241]
[1731143962177,0.07849144,76599.0,76595.0,0.065241]
[1731143962178,0.04595095,76596.0,76595.0,0.065241]
[1731143962485,0.04595095,76596.0,76595.0,0.07339062]
[1731143962779,0.06524,76597.0,76594.0,0.06527688]
[1731143963180,0.06524,76597.0,76593.0,0.06527688]
[1731143963389,0.06524,76597.0,76594.0,0.00813608]
[1731143963685,0.06524,76597.0,76593.0,0.13051988]
[1731143963878,0.06524,76597.0,76594.0,0.00813398]
[1731143964183,0.06524,76597.0,76593.0,0.13051988]
[1731143964380,0.3608,76600.0,76594.0,0.00813357]
[1731143964582,0.3608,76600.0,76597.0,0.06524]
[1731143964771,0.426038,76600.0,76597.0,0.06524]
[1731143966383,0.3608,76598.0,76597.0,0.06524]
[1731143966581,0.3608,76598.0,76597.0,0.07338349]
[1731143972285,0.3608,76598.0,76597.0,0.13804902]
[1731143975577,0.3608,76599.0,76598.0,0.065239]
[1731143975791,0.3608,76599.0,76598.0,0.07338249]